Cogmind - Beta 16.1 @@@ ROGUE MODE // 2026.04.08 @ 17:07:53 Player: Maelyn Result: Destroyed by S-10 Pest with Light Assault Rifle Performance ------------- Evolutions (1) 500 Regions Visited (5) 1000 Robots Destroyed (36) 180 Value Destroyed (672) 672 Prototype IDs (1) 20 Alien Tech Used (0) 0 Bonus (173) 173 TOTAL SCORE: 2545 Bonus ------- Follower Combat Kills 173 Cogmind --------- Core Integrity 0/400 Matter 292/300 Energy 150/150 System Corruption 0% Temperature Cool (8) Movement Walking (260) Ox2 Location -8/Mines Parts ------- > --- POWER (1) -------- Light Angular Momentum Engine > --- PROPULSION (2) --- Carbon-fiber Leg > --- UTILITY (4) ------ Advanced Heat Sink Large Storage Unit Reaction Control System Core Shielding > --- WEAPON (2) ------- Particle Gun Light Assault Rifle > --- INVENTORY (15) --- Nuclear Core Aluminum Leg Aluminum Leg Improved Heat Sink Medium Storage Unit Compact Battery (200) Improved Sensor Array Improved Sensor Array Improved Terrain Scanner ECM Suite Medium Armor Plating Heavy Laser Light Assault Rifle Peak State ------------ > --- POWER ------------ Light Nuclear Core > --- PROPULSION ------- Aluminum Leg Improved Aluminum Leg > --- UTILITY ---------- Large Storage Unit Improved Sensor Array Seismic Detector Splice Drone Bay > --- WEAPON ----------- Beamcaster Light Assault Rifle > --- INVENTORY -------- Ion Engine Ion Engine Aluminum Leg Aluminum Leg Improved Heat Sink Medium Storage Unit Compact Battery Improved Sensor Array Improved Sensor Array Improved Terrain Scanner ECM Suite Reaction Control System Core Shielding Light Assault Rifle Light Assault Rifle [Rating: 26] Favorites ----------- Power Ion Engine Engine Ion Engine Power Core Light Nuclear Core Propulsion Aluminum Leg Treads Light Treads Leg Aluminum Leg Utility Large Storage Unit Device Seismic Detector Storage Large Storage Unit Processor Signal Interpreter Hackware Hacking Suite Protection Core Shielding Weapon Light Assault Rifle Energy Gun Beamcaster Ballistic Gun Light Assault Rifle Build | -11 -10 -9 -9 -9 -8 ------- Run | Yrd Mat Mat Min Exi Min Slots Evolved 2 | . . 2 . . . Power . | . . . . . . Propulsion . | . . . . . . Utility 2 | . . 2 . . . Weapon . | . . . . . . Parts Attached 47 | 8 14 6 9 . 10 Power 6 | 1 2 . 1 . 2 Engine 5 | 1 2 . . . 2 Core 1 | . . . 1 . . Reactor . | . . . . . . Propulsion 11 | 3 2 1 4 . 1 Treads 2 | 2 . . . . . Leg 9 | 1 2 1 4 . 1 Wheel . | . . . . . . Hover . | . . . . . . Flight . | . . . . . . Utility 15 | 1 4 4 3 . 3 Device 10 | . 2 3 3 . 2 Storage 2 | 1 1 . . . . Processor 1 | . 1 . . . . Hackware 1 | . . 1 . . . Protection 1 | . . . . . 1 Artifact . | . . . . . . Weapon 15 | 3 6 1 1 . 4 Energy Gun 6 | 1 1 1 1 . 2 Energy Cannon . | . . . . . . Ballistic Gun 9 | 2 5 . . . 2 Ballistic Cannon . | . . . . . . Launcher . | . . . . . . Special Weapon . | . . . . . . Impact Weapon . | . . . . . . Slashing Weapon . | . . . . . . Piercing Weapon . | . . . . . . Special Melee Weapon . | . . . . . . Unidentified Prototypes 1 | . . . 1 . . Parts Lost 16 | . 5 . 4 . 7 Power 4 | . 2 . 1 . 1 Propulsion 2 | . . . 1 . 1 Utility 5 | . 1 . 1 . 3 Weapon 5 | . 2 . 1 . 2 Highest Loss Streak 6 | . 3 . 4 . 6 To Critical Strikes . | . . . . . . Average Backups 12 | 4 7 13 14 15 13 Power 1 | . 1 2 2 2 1 Propulsion 1 | 2 . 1 1 2 2 Utility 6 | . 2 6 8 9 7 Weapon 2 | . 2 4 2 2 1 Tool/Special . | . . . . . . Unused Backups 17 | . 3 1 3 . 10 Power 5 | . 3 . . . 2 Propulsion 1 | . . . . . 1 Utility 10 | . . . 3 . 7 Weapon 1 | . . 1 . . . Tool/Special . | . . . . . . Average Slot Usage (%) 94 | . 86 96 98 100 93 Engine 6 | . 9 11 . . 9 Core 4 | . . . 10 11 . Treads 1 | . 6 . . . . Leg 21 | . 19 21 21 22 21 Device 23 | . 10 22 32 33 20 Storage 11 | . 14 11 11 11 11 Hackware 2 | . . 8 . . . Energy Gun 5 | . 2 7 2 11 8 Ballistic Gun 16 | . 21 14 19 11 12 Peak Build Rating 26 | 6 8 15 26 26 26 Average Rating 15 | 4 6 12 19 26 20 On Entrance 13 | . 6 8 15 26 26 Avg Prop Armor Cover (%) 8 | . . . . . 8 Naked Turns . | . . . . . . Heaviest Build 41 | 14 29 32 41 41 36 Greatest Support 40 | 40 40 20 23 23 25 Greatest Overweight (x) 8 | . 8 3 2 1 2 Average Overweight (x) . | . . 1 1 1 1 Largest Inventory Capacity 15 | 8 15 15 15 15 15 Average Capacity 14 | 7 14 15 15 15 15 Most Carried 15 | 5 13 15 15 15 15 Average Carried 12 | 4 7 13 14 15 13 Final Capacity 15 | 8 15 15 15 15 15 Final Carried 15 | 5 12 15 15 15 13 Class Distribution -------------------- 56% | Scavenger-Mutant 43% | Mutant Dominant Class ---------------- Mutant | -10/Materials Mutant | -9/Materials Scavenger-Mutant | -9/Mines Scavenger-Mutant | -9/Exiles Scavenger-Mutant | -8/Mines Resources | -11 -10 -9 -9 -9 -8 ----------- Run | Yrd Mat Mat Min Exi Min Matter Collected 1140 | 173 235 335 246 . 151 Remotely . | . . . . . . Salvage Created 1254 | 102 316 331 318 . 187 Parts 81 | 7 32 18 12 . 12 Haulers Intercepted 1 | . . 1 . . . Recyclers Shooed 2 | . 1 . . . 1 Parts Field Recycled . | . . . . . . Retrieved Matter . | . . . . . . Parts Self-Destructed . | . . . . . . Prevented . | . . . . . . Parts Restored . | . . . . . . Kills | -11 -10 -9 -9 -9 -8 ------- Run | Yrd Mat Mat Min Exi Min Combat Hostiles Destroyed 23 | . 11 5 3 . 4 Guns 23 | . 11 5 3 . 4 Classes Destroyed 8 | 2 4 2 . . . Worker 2 | . . 2 . . . Tunneler 6 | 2 1 . 3 . . Hauler 1 | . . 1 . . . Recycler 2 | 1 . 1 . . . Operator 1 | . 1 . . . . Watcher 1 | . 1 . . . . Swarmer 12 | . 8 3 . . 1 Grunt 11 | . 3 2 3 . 3 Best Kill Streak 5 | 3 5 4 3 . 2 Combat Bots Only 5 | . 5 3 3 . 2 Max Kills in Single Turn 1 | 1 1 1 1 . 1 Gunslinging . | . . . . . . Exploded . | . . . . . . Melee . | . . . . . . Uniques/NPCs Destroyed . | . . . . . . Combat | -11 -10 -9 -9 -9 -8 -------- Run | Yrd Mat Mat Min Exi Min Hostile Shots Fired 307 | . 156 37 40 . 74 Missed 79 | . 55 9 6 . 9 Hits 228 | . 101 28 34 . 65 Projectile 228 | . 101 28 34 . 65 Critical Strikes 3 | . . . . . 3 Damage Taken 2622 | . 921 239 382 . 1080 Core 588 | . 181 52 102 . 253 Absorbed by Shields . | . . . . . . Redirected to Shielding 3 | . . . . . 3 Core Remaining (%) 63 | 100 27 . . . . Volleys Fired 152 | 8 50 33 32 . 29 Largest 2 | 2 2 2 2 . 2 Hottest 95 | 40 60 76 95 . 95 Shots Fired 284 | 16 94 66 62 . 46 Gun 284 | 16 94 66 62 . 46 Cannon . | . . . . . . Launcher . | . . . . . . Special . | . . . . . . Kinetic 223 | 16 77 37 60 . 33 Thermal 56 | . 12 29 2 . 13 Explosive . | . . . . . . Electromagnetic 5 | . 5 . . . . Robot Hit Streak 10 | 6 7 7 10 . 8 Robot Miss Streak 9 | 1 9 6 3 . 2 Penetration Max . | . . . . . . Secondary Targets 6 | . 2 1 . . 3 Max Gunslinging Chain 1 | . 1 1 . . 1 Shots Hit Robots 166 | 12 43 33 45 . 33 Core Hits 72 | 5 24 13 15 . 15 Critical Kills . | . . . . . . Critical Parts Destroyed . | . . . . . . Critical Strikes 1 | . . 1 . . . Burn 1 | . . 1 . . . Melee Attacks . | . . . . . . Impact . | . . . . . . Slashing . | . . . . . . Piercing . | . . . . . . Sneak Attacks . | . . . . . . Combat Hostiles . | . . . . . . Follow-up Attacks . | . . . . . . Damage Inflicted 1927 | 119 490 464 443 . 411 Guns 1927 | 119 490 464 443 . 411 Cannons . | . . . . . . Explosions . | . . . . . . Melee . | . . . . . . Ramming . | . . . . . . Kinetic 1432 | 119 419 264 422 . 208 Thermal 469 | . 45 200 21 . 203 Explosive . | . . . . . . Electromagnetic 26 | . 26 . . . . Impact . | . . . . . . Slashing . | . . . . . . Piercing . | . . . . . . Highest Corruption . | . . . . . . Average Corruption . | . . . . . . Corruption Purged . | . . . . . . Corruption Blocked . | . . . . . . Overload Shots . | . . . . . . Overflow Damage . | . . . . . . Projectiles . | . . . . . . Explosions . | . . . . . . Melee . | . . . . . . Knockbacks . | . . . . . . Impact . | . . . . . . Kinetic . | . . . . . . Secondary . | . . . . . . Self-Inflicted Damage . | . . . . . . Shots . | . . . . . . Rammed . | . . . . . . Targets Rammed . | . . . . . . Kicked . | . . . . . . Crushed . | . . . . . . Highest Temperature 587 | . 40 66 83 . 587 Average Temperature 105 | . 14 14 20 . 301 Received Heat Transfer 894 | . 183 30 213 . 468 Effects 11 | . . . . . 11 Energy Bleed 2 | . . . . . 2 Interference 4 | . . . . . 4 Matter Decay 1 | . . . . . 1 Short Circuit 1 | . . . . . 1 Damage (minor) 1 | . . . . . 1 Damage (core) 2 | . . . . . 2 Siege Activations . | . . . . . . Martial Activations . | . . . . . . Shielding Activations . | . . . . . . Robots Disrupted . | . . . . . . Combat Hostiles . | . . . . . . Robots Corrupted . | . . . . . . Combat Hostiles . | . . . . . . Parts Fried . | . . . . . . Impact Corruptions . | . . . . . . Robots Melted . | . . . . . . Combat Hostiles . | . . . . . . Parts Melted 2 | . . 2 . . . Heat Transferred 1099 | . 100 592 37 . 370 Parts Sabotaged . | . . . . . . Parts Stolen . | . . . . . . Parts Stripped . | . . . . . . Power Chain Reactions . | . . . . . . Alert | -11 -10 -9 -9 -9 -8 ------- Run | Yrd Mat Mat Min Exi Min Maximum Alert Level . | . . . . . . Low Security (%) 100 | 100 100 100 100 . 100 Level 1 . | . . . . . . Level 2 . | . . . . . . Level 3 . | . . . . . . Level 4 . | . . . . . . Level 5 . | . . . . . . High Security . | . . . . . . Max Security . | . . . . . . Peak Influence 106 | 5 78 85 106 . 30 Initial 19 | . . . 19 . . Average 14 | . 17 11 20 . 4 Influence Increases 861 | 15 302 173 281 . 90 Destroy 0b10 Robot/C 560 | . 220 100 160 . 80 Destroy 0b10 Robot/NC 85 | 15 15 20 35 . . Destroy Leader 104 | . 52 22 20 . 10 Allied During Kill 21 | . . . 21 . . Disable Machine 30 | . 15 15 . . . Destroy Structure 1 | . . 1 . . . Partial Spotted 15 | . . 15 . . . Lose Combat Pursuer 45 | . . . 45 . . Influence Decreases 841 | 15 300 124 320 12 70 Entered New Map 46 | . . 2 32 12 . Time Decay 625 | 15 260 122 188 . 40 Lost Part 110 | . 40 . 40 . 30 Lost Ally 60 | . . . 60 . . Squads Dispatched 5 | . 1 2 2 . . Investigation . | . . . . . . Extermination . | . . . . . . Reinforcement 3 | . 1 2 . . . Assault 2 | . . . 2 . . Garrison . | . . . . . . Intercept . | . . . . . . Searches Triggered . | . . . . . . Construction Impeded . | . . . . . . Haulers Reinforced . | . . . . . . Active Scanning Responses . | . . . . . . Cargo Convoy Interrupts . | . . . . . . Stealth | -11 -10 -9 -9 -9 -8 --------- Run | Yrd Mat Mat Min Exi Min Distress Signals 1 | . 1 . . . . Communications Jammed . | . . . . . . Distress Signals . | . . . . . . Times Spotted 57 | . 24 15 11 . 7 Peak Tracking Total 5 | . 5 3 5 . 3 Tactical Retreats 1 | . . . 1 . . Traps | -11 -10 -9 -9 -9 -8 ------- Run | Yrd Mat Mat Min Exi Min Traps Triggered 5 | . 4 1 . . . Indirectly . | . . . . . . Trap Hack Attempts . | . . . . . . Triggered . | . . . . . . Disarmed . | . . . . . . Reprogrammed . | . . . . . . Reused . | . . . . . . Traps Extracted . | . . . . . . Installed . | . . . . . . Triggered . | . . . . . . Machines | -11 -10 -9 -9 -9 -8 ---------- Run | Yrd Mat Mat Min Exi Min Machines Disabled 2 | . 1 1 . . . Max in Single Turn 1 | . 1 1 . . . Machines Repaired . | . . . . . . Machines Dismantled . | . . . . . . Machines Sabotaged . | . . . . . . Overloaded Fab Kills . | . . . . . . Hacking | -11 -10 -9 -9 -9 -8 --------- Run | Yrd Mat Mat Min Exi Min Machines Accessed 2 | . . 1 1 . . Terminals 1 | . . 1 . . . Fabricators . | . . . . . . Repair Stations . | . . . . . . Recycling Units . | . . . . . . Scanalyzers . | . . . . . . Garrison Access . | . . . . . . Total Hacks 3 | . . 2 1 . . Successful 3 | . . 2 1 . . Failed . | . . . . . . Catastrophic . | . . . . . . Database Lockouts . | . . . . . . Manual 1 | . . . . 1 . Terminals 2 | . . 2 . . . Fabricators . | . . . . . . Repair Stations . | . . . . . . Recycling Units . | . . . . . . Scanalyzers . | . . . . . . Garrison Access . | . . . . . . Terminal Hacks 3 | . . 2 1 . . Record 1 | . . 1 . . . Open Door 1 | . . . 1 . . Alert Level 1 | . . 1 . . . Fabricator Hacks . | . . . . . . Repair Station Hacks . | . . . . . . Recycling Unit Hacks . | . . . . . . Scanalyzer . | . . . . . . Garrison Access Hacks . | . . . . . . Unauthorized Hacks . | . . . . . . Terminals . | . . . . . . Fabricators . | . . . . . . Repair Stations . | . . . . . . Recycling Units . | . . . . . . Scanalyzers . | . . . . . . Garrison Access . | . . . . . . Data Cores Recovered . | . . . . . . Used . | . . . . . . Hacking Detections 1 | . . 1 . . . Full Trace Events . | . . . . . . Feedback Events . | . . . . . . Feedback Blocked . | . . . . . . Robot Schematics Acquired . | . . . . . . Robots Built . | . . . . . . Authchips . | . . . . . . Time . | . . . . . . Total Robot Build Rating . | . . . . . . Part Schematics Acquired . | . . . . . . Parts Built . | . . . . . . Authchips . | . . . . . . Time . | . . . . . . Total Part Build Rating . | . . . . . . Part Studies Acquired . | . . . . . . Parts Repaired . | . . . . . . Time . | . . . . . . Parts Recycled . | . . . . . . Recycled Matter . | . . . . . . Retrieved Matter . | . . . . . . Retrieved Components . | . . . . . . Parts Scanalyzed . | . . . . . . Part Schematics Acquired . | . . . . . . Parts Damaged . | . . . . . . Bothacking | -11 -10 -9 -9 -9 -8 ------------ Run | Yrd Mat Mat Min Exi Min Used RIF Installer . | . . . . . . Robots Hacked . | . . . . . . Non-combat . | . . . . . . Combat . | . . . . . . Robot Hacks Applied . | . . . . . . Relay Couplers Released . | . . . . . . Fabnet Peak Effective % . | . . . . . . Robots Rewired . | . . . . . . Allies Hacked . | . . . . . . Hacks Repelled . | . . . . . . Allies | -11 -10 -9 -9 -9 -8 -------- Run | Yrd Mat Mat Min Exi Min Total Allies 3 | . . . 3 . . Largest Group 3 | . . . 3 . . Highest-Rated Group 76 | . . . 76 . . Highest-Rated Ally 31 | . . . 31 . . Total Orders . | . . . . . . Ally Attacks 23 | . . . 23 . . Total Damage 432 | . . . 432 . . Kills 6 | . . . 6 . . Allies Corrupted . | . . . . . . Allies Melted . | . . . . . . Intel | -11 -10 -9 -9 -9 -8 ------- Run | Yrd Mat Mat Min Exi Min Active Infowar (turns) 4150 | . 912 1203 1019 985 31 Sensors 3200 | . . 1165 1019 985 31 Seismic 4137 | . 912 1203 1019 985 18 ECM 374 | . . . 374 . . Robot Analysis Total . | . . . . . . Derelict Logs Recovered . | . . . . . . Drone Launches . | . . . . . . Drone Recoveries . | . . . . . . Exploration | -11 -10 -9 -9 -9 -8 ------------- Run | Yrd Mat Mat Min Exi Min Turns Passed 4877 | 117 1254 1203 1019 985 299 Spaces Moved 2279 | 54 554 564 480 519 108 Core 28 | 9 19 . . . . Treads 161 | 30 131 . . . . Legs 2090 | 15 404 564 480 519 108 Wheels . | . . . . . . Hover . | . . . . . . Flight . | . . . . . . Fastest Speed 50 | 50 160 190 190 190 190 Average Speed 188 | 130 189 190 190 190 195 Slowest Speed 450 | 160 450 330 260 190 260 Overloaded Moves . | . . . . . . Propulsion Burnouts . | . . . . . . Robots Hopped . | . . . . . . Potential Cave-ins . | . . . . . . Cave-ins Triggered . | . . . . . . Exploration Rate (%) 46 | 5 65 32 54 91 32 Regions Visited 5 Branch Regions 3 Pre-discovered Areas . | . . . . . . Known Exits Taken . | . . . . . . Unknown Exits Taken 5 | 1 1 1 1 1 . Scrap Searched . | . . . . . . Spaces Dug . | . . . . . . Terrain Destroyed . | . . . . . . Melee . | . . . . . . Projectile . | . . . . . . AOE . | . . . . . . Terrain Rammed . | . . . . . . Walls Destroyed . | . . . . . . Machines Disabled . | . . . . . . Actions | -11 -10 -9 -9 -9 -8 --------- Run | Yrd Mat Mat Min Exi Min Total 2603 | 83 677 631 537 518 157 Wait 26 | 7 12 7 . . . Move 2274 | 53 553 563 479 518 108 Hop . | . . . . . . Pick Up 62 | 7 29 12 7 . 7 Fast Attach 8 | 4 . 2 2 . . Attach 28 | 2 13 4 3 . 6 Detach 1 | . . 1 . . . Swap 23 | 2 10 2 5 . 4 Drop 29 | . 10 7 9 . 3 Fire 152 | 8 50 33 32 . 29 Melee . | . . . . . . Ram . | . . . . . . Kick . | . . . . . . Crush . | . . . . . . Escape Stasis . | . . . . . . Rewire . | . . . . . . Trap . | . . . . . . Miscellaneous . | . . . . . . Route ------- -11/Scrapyard -10/Materials (discovered 5 exits: *Mat x2 / [*Min x2] / [*Sub]) -9/Materials (discovered 2 exits: *Min / [*Sto]) -9/Mines -9/Exiles -8/Mines History --------- Turn | Location | Event 9 | -11/Scrapyard | Discovered new exit (range 15) 118 | -11/Scrapyard | Entered Materials 300 | -10/Materials | Build established: Mutant 495 | -10/Materials | Discovered new exit (range 10) 496 | -10/Materials | Lost 3 parts (1p2w) 529 | -10/Materials | Discovered new exit (range 9) 688 | -10/Materials | Core integrity fell below 50% 936 | -10/Materials | Discovered new exit (range 11) 1130 | -10/Materials | Discovered new exit (range 16) 1202 | -10/Materials | Discovered new exit (range 15) 1372 | -10/Materials | Entered another Materials area 1372 | -9/Materials | Evolved 2 slots: Utility x2 1529 | -9/Materials | Discovered new exit (range 5) 2500 | -9/Materials | Build established: Scavenger-Mutant 2508 | -9/Materials | Discovered new exit (range 16) 2575 | -9/Materials | Entered Mines 2646 | -9/Mines | Lost 4 parts (1p1n1u1w) 2744 | -9/Mines | Deemed a non-threat by the Exiles lab entrance 2746 | -9/Mines | Discovered new exit (range 5) 3009 | -9/Mines | Found the Drone Emporium 3018 | -9/Mines | Found Prototype Device 3019 | -9/Mines | Identified Splice Drone Bay 3167 | -9/Mines | Met a Derelict testing a Signal Generator 3181 | -9/Mines | Found Signal Generator 3594 | -9/Mines | Entered Exiles 3642 | -9/Exiles | Met 8R-AWN 3672 | -9/Exiles | Met EX-HEX 3754 | -9/Exiles | Met EX-BIN 4014 | -9/Exiles | Met EX-DEC 4221 | -9/Exiles | Visited The Gauntlet 4506 | -9/Exiles | Discovered new exit (range 12) 4579 | -9/Exiles | Entered Mines 4590 | -8/Mines | Core integrity fell below 50% 4612 | -8/Mines | Core integrity fell below 20% 4668 | -8/Mines | Lost 6 parts (1p3u2w) 4878 | -8/Mines | Destroyed by S-10 Pest with Light Assault Rifle Last Messages --------------- 04642_ G-50 Soldier destroyed. 04647_ Acquired 60 matter. 04652_ Acquired Carbon-fiber Leg. 04656_ Acquired Lgt. Angular Momentum Engine. 04658_ Dropped Broken Imp. Aluminum Leg. 04659_ Acquired 6 matter. 04663_ Acquired Hvy. Laser. 04668_ Acquired Adv. Heat Sink. 04677_ Acquired Particle Gun. 04714_ Acquired Med. Armor Plating. 04721_ Acquired 36 matter. 04725_ Acquired Nuclear Core. 04757_ Dropped Ion Engine. 04860_ K-01 Serf collects debris. 04862_ Aluminum Leg destroyed. 04863_ S-10 Pest destroyed. 04864_ K-01 Serf collects debris. 04874_ S-10 Pest destroyed. 04874_ Switching to secondary target: S-10 Pest. 04875_ K-01 Serf collects debris. Map ----- +----------------------------------------------------+ | ????????????????????????????????????????? | | ????????????????????????????????????????? | | ????????????????????????????????????????? | | ????????????????????????????????????????? | | ????????????????????????????????????????# | | ???????????????????????????????????????## | | ??????????????????????????????????????## | | ??????????????????????????????????????# | | ???????????????????????????????????????# | | ???????????????????????????????????????## | | ???????????????????????????####?????????# | | ??????????????????????????## ????????## | | ??????????????????????????# ??????## | | ??????????????????????????# #?##### | | ??????????????????????????# ## | | ??????????????????????????# | | ???????????????????????????# ## | | ????????#######????????????# ## ### | | ???????## #???????????????# ##? | | ???????# ##?????????????## #? | | ???????# ??????????????### ## | | ???????# k r????????????????## # | | ????????# #?????????????????## # | | ?????????# k##????????????????## # | | ??????????# ################## # | | ??????????## @[ ## | | ???????????## =%* t ##? | | ????????????## ################### ##?? | | ?????????????# u#?????????????????###??? | | ????????????# s #??????????????????????? | | ???????????# s #??????????????????????? | | ?????????? #??????????????????????? | | ????????? ##??????????????????????? | | ??????? [t????????????????????????? | | ??????# *%r????????????????????????? | | ??????# = ????????????????????????? | | ??????## ????????????????????????? | | ???????## ????????????????????????? | | ????????# ????????????????????????? | | ?????????? ?## ????????????????????????? | | ??????????????#?????????????????????????? | | ????????????????????????????????????????? | | ????????????????????????????????????????? | | ????????????????????????????????????????? | | ????????????????????????????????????????? | | ????????????????????????????????????????? | | ????????????????????????????????????????? | | ????????????????????????????????????????? | | ????????????????????????????????????????? | | ????????????????????????????????????????? | +----------------------------------------------------+ Best States ------------- Heat Dissipation 47 Energy Generation 18 Energy Capacity 250 Matter Stores 300 Matter Capacity 300 Sight Range 16 Robot Scan Range 15 Terrain Scan Density 10 ECM Strength 1 Core Shielding 20 Evasion (%) 50 Recoil Reduction 2 Offensive Hacking 10 Item Schematics ----------------- None Robot Schematics ------------------ None Fabricated ------------ Nothing Repaired ---------- Nothing Studied --------- None Alien Tech Used ----------------- None Achievements -------------- None Challenges ------------ None Game ------ Seed GodAuthchipPulseblaster Manual? 0 Play Time 00:31:46 Cumulative 21.0 hours Start 2026.04.08 @ 16:29:25 End 2026.04.08 @ 17:07:53 Sessions 1 Manual Loads 0 Difficulty Rogue Special Mode None Game No. 58 Rogue 58 Adventurer 0 Explorer 0 Win Type - Total 0 Types 0/0/0/0/0/0/0/0/0/0 Lore% 10 Gallery% 20 Achievement% 12 Wizard Run 0 Options --------- Layout 2 ASCII 0 Keyboard 0 Movement Mouse Keybinds 0 Fullscreen 1 Font 24/Crisp Map View 50x44 Zoom Use 0% Tactical HUD 1 Map Filters NONE Filters NONE Steam 1 RUN: cd4c1509-c995-47f9-938a-01cc17b5b939